bitfinex/quotes_BTCUSD_20240817
["timestamp","ask_amount","ask_price","bid_price","bid_amount"]
[1723893984993,0.52620219,59268.0,59267.0,0.0169464]
[1723893988045,0.27311519,59268.0,59267.0,0.0169464]
[1723894009945,0.52620219,59268.0,59267.0,0.0169464]
[1723894010154,1.0887305,59268.0,59267.0,0.0169464]
[1723894010365,1.33634571,59268.0,59267.0,0.0169464]
[1723894010573,1.35540866,59268.0,59267.0,0.0169464]
[1723894010993,1.35540866,59268.0,59267.0,0.0089464]
[1723894011596,1.36547826,59268.0,59267.0,0.0089464]
[1723894011921,1.36547826,59268.0,59267.0,0.0099464]
[1723894012312,1.36547826,59268.0,59267.0,0.0019464]
[1723894012705,1.36747826,59268.0,59267.0,0.0019464]
[1723894013373,1.36947826,59268.0,59267.0,0.0009464]
[1723894014246,1.37247826,59268.0,59267.0,0.0009464]
[1723894016384,1.53433256,59268.0,59267.0,0.0009464]
[1723894018427,1.37247826,59268.0,59267.0,0.0009464]
[1723894019054,1.49863281,59268.0,59267.0,0.0009464]
[1723894019258,1.37247826,59268.0,59267.0,0.0009464]
[1723894021532,0.94783672,59268.0,59267.0,0.0009464]
[1723894021951,1.07410805,59268.0,59267.0,0.0009464]
[1723894022162,0.94783672,59268.0,59267.0,0.0009464]
[1723894022983,0.7810101,59268.0,59267.0,0.0009464]
[1723894023190,0.58806578,59268.0,59267.0,0.0009464]
[1723894023392,0.71442695,59268.0,59267.0,0.0009464]
[1723894023635,0.30953208,59268.0,59267.0,0.0009464]
[1723894023848,0.08299563,59268.0,59267.0,0.0009464]
[1723894024053,0.00717219,59268.0,59267.0,0.0009464]
[1723894025285,0.0829976,59268.0,59267.0,0.0009464]
[1723894026512,0.0799976,59268.0,59267.0,0.0009464]
[1723894026917,0.0779976,59268.0,59267.0,0.0009464]
[1723894027409,0.0779976,59268.0,59267.0,0.1274914]
[1723894027643,0.0759976,59268.0,59267.0,0.0019464]
[1723894027855,0.00017219,59268.0,59267.0,0.0019464]
[1723894028664,0.00017219,59268.0,59267.0,0.1284914]
[1723894028871,0.00017219,59268.0,59267.0,0.97242794]
[1723894029698,0.00017219,59268.0,59267.0,0.97142794]
[1723894029877,0.00017219,59268.0,59267.0,0.97242794]
[1723894030290,0.00017219,59268.0,59267.0,0.97142794]
[1723894030722,0.00017219,59268.0,59267.0,0.97342794]
[1723894031653,0.00017219,59268.0,59267.0,0.97542794]
[1723894033123,0.00017219,59268.0,59267.0,0.97342794]
[1723894033328,0.00017219,59268.0,59267.0,0.97542794]
[1723894033786,0.00017219,59268.0,59267.0,0.97342794]
[1723894034000,0.00017219,59268.0,59267.0,0.97142794]
[1723894034230,0.00017219,59268.0,59267.0,0.98042794]
[1723894034656,0.00017219,59268.0,59267.0,1.22451894]
[1723894034856,0.00017219,59268.0,59267.0,0.98242794]
[1723894035299,0.00017219,59268.0,59267.0,0.99142794]
[1723894035680,0.00017219,59268.0,59267.0,0.98242794]
[1723894035905,0.00017219,59268.0,59267.0,0.99242794]
[1723894036422,0.00017219,59268.0,59267.0,0.98242794]
[1723894036621,0.00017219,59268.0,59267.0,0.99242794]
[1723894037038,0.00017219,59268.0,59267.0,0.98142794]
[1723894037285,0.00017219,59268.0,59267.0,0.99242794]
[1723894037806,0.00017219,59268.0,59267.0,0.98142794]
[1723894038012,0.00017219,59268.0,59267.0,0.99242794]
[1723894038208,0.00017219,59268.0,59267.0,0.98242794]
[1723894038705,0.00017219,59268.0,59267.0,0.99242794]
[1723894039916,0.00017219,59268.0,59267.0,0.6776734]
[1723894040327,0.13727219,59268.0,59267.0,0.1484914]
[1723894041592,0.13727219,59268.0,59267.0,0.4015824]
[1723894041867,0.07517219,59268.0,59267.0,0.4015824]
[1723894043127,0.07517219,59268.0,59267.0,0.0219464]
[1723894043302,0.13727219,59268.0,59267.0,0.0219464]
[1723894050142,0.13727219,59268.0,59267.0,0.0209464]
[1723894051347,0.13727219,59268.0,59267.0,0.0218528]
[1723894059178,0.13727219,59268.0,59267.0,0.1483978]
[1723894059388,0.13727219,59268.0,59267.0,0.4014888]
[1723894059389,0.00017219,59268.0,59267.0,0.4014888]
[1723894059569,0.00017219,59268.0,59267.0,0.1483978]
[1723894064640,0.00017219,59268.0,59267.0,0.4014888]
[1723894064815,0.00017219,59268.0,59267.0,0.7341798]
[1723894064955,0.00017219,59268.0,59267.0,0.8004798]
[1723894069039,0.00017219,59268.0,59267.0,0.7341798]
[1723894072093,0.00017219,59268.0,59267.0,0.6545798]
[1723894073675,0.05078173,59268.0,59267.0,0.6545798]
[1723894074510,0.00017219,59268.0,59267.0,0.6545798]
[1723894076680,0.05078352,59268.0,59267.0,0.6545798]
[1723894079976,0.05078352,59268.0,59267.0,0.4014888]
[1723894080736,0.07608919,59268.0,59267.0,0.4014888]
[1723894083673,0.07611467,59268.0,59267.0,0.4014888]
[1723894087768,0.00017219,59268.0,59267.0,0.4014888]
[1723894088357,0.05081257,59268.0,59267.0,0.4014888]
[1723894091208,0.00017219,59268.0,59267.0,0.4014888]
[1723894091416,0.05081133,59268.0,59267.0,0.4014888]
[1723894091640,0.00017219,59268.0,59267.0,0.4014888]
[1723894091858,0.0508113,59268.0,59267.0,0.4014888]
[1723894092361,0.05081104,59268.0,59267.0,0.4014888]
[1723894093424,0.00017219,59268.0,59267.0,0.4014888]
[1723894094282,0.05081307,59268.0,59267.0,0.4014888]
[1723894094917,0.05081311,59268.0,59267.0,0.4014888]
[1723894095488,0.00017219,59268.0,59267.0,0.4014888]
[1723894095695,0.05080952,59268.0,59267.0,0.4014888]
[1723894095896,0.00017219,59268.0,59267.0,0.4014888]
[1723894096103,0.05080956,59268.0,59267.0,0.4014888]
[1723894096862,0.00017219,59268.0,59267.0,0.4014888]
[1723894097086,0.05081022,59268.0,59267.0,0.4014888]
[1723894097295,0.00017219,59268.0,59267.0,0.4014888]
[1723894098036,0.07611467,59268.0,59267.0,0.4014888]
[1723894101820,0.07613022,59268.0,59267.0,0.4014888]
[1723894104480,0.00017219,59268.0,59267.0,0.4014888]
[1723894104682,0.07613866,59268.0,59267.0,0.4014888]
[1723894104888,0.00017219,59268.0,59267.0,0.4014888]
[1723894107527,0.07613887,59268.0,59267.0,0.4014888]
[1723894109577,0.00017219,59268.0,59267.0,0.4014888]
[1723894111830,0.00017219,59268.0,59267.0,0.1483978]
[1723894114509,0.06185616,59268.0,59267.0,0.1483978]
[1723894115875,0.06190525,59268.0,59267.0,0.1483978]
[1723894116460,0.16319624,59268.0,59267.0,0.1483978]
[1723894124945,0.16322838,59268.0,59267.0,0.1483978]
[1723894126769,0.07612972,59268.0,59267.0,0.1483978]
[1723894127948,0.06255382,59268.0,59267.0,0.1483978]
[1723894128709,0.00017219,59268.0,59267.0,0.1483978]
[1723894129111,0.07613085,59268.0,59267.0,0.1483978]
[1723894129762,0.00017219,59268.0,59267.0,0.1483978]
[1723894131444,0.07608928,59268.0,59267.0,0.4014888]
[1723894132441,0.00017219,59268.0,59267.0,0.4014888]
[1723894133021,0.00017219,59268.0,59267.0,0.4790888]
[1723894134125,0.00017219,59268.0,59267.0,1.27543579]
[1723894134379,0.00017219,59268.0,59267.0,1.38273063]
[1723894135357,0.00017219,59268.0,59267.0,1.37178423]
[1723894135784,0.00017219,59268.0,59267.0,1.36178423]
[1723894136137,0.00017219,59268.0,59267.0,1.38978423]
[1723894136331,0.00017219,59268.0,59267.0,1.38048939]
[1723894136561,0.00017219,59268.0,59267.0,1.36648939]
[1723894136869,0.00017219,59268.0,59267.0,1.38048939]
[1723894137089,0.00017219,59268.0,59267.0,1.38978375]
[1723894137291,0.00017219,59268.0,59267.0,1.38048939]
[1723894137707,0.00017219,59268.0,59267.0,1.35167894]
[1723894137904,0.00017219,59268.0,59267.0,1.38048939]
[1723894138105,0.00017219,59268.0,59267.0,1.35167894]
[1723894138312,0.00017219,59268.0,59267.0,1.38048939]
[1723894138545,0.00017219,59268.0,59267.0,1.35167894]
[1723894139241,0.00017219,59268.0,59267.0,1.37954141]
[1723894139449,0.00017219,59268.0,59267.0,1.28687894]
[1723894140519,0.00017219,59268.0,59267.0,1.28787894]
[1723894142181,0.00017219,59268.0,59267.0,1.28687894]
[1723894143970,0.00017219,59268.0,59267.0,1.28787894]
[1723894147166,0.00017219,59268.0,59267.0,1.21027894]
[1723894148011,0.00017219,59268.0,59267.0,1.20927894]
[1723894150744,0.00017219,59268.0,59267.0,0.95618794]
[1723894150949,0.00017219,59268.0,59267.0,1.05088794]
[1723894156866,0.00017219,59268.0,59267.0,0.95618794]
[1723894157081,0.00017219,59268.0,59267.0,1.05088794]
[1723894157645,0.00017219,59268.0,59267.0,0.1554514]
[1723894157646,0.14297219,59268.0,59267.0,0.1554514]
[1723894158904,0.14297219,59268.0,59267.0,0.1414514]
[1723894159342,0.14297219,59268.0,59267.0,0.1354514]
[1723894159481,0.14297219,59268.0,59267.0,0.1424514]
[1723894159683,0.14297219,59268.0,59267.0,0.1344514]
[1723894159985,0.14297219,59268.0,59267.0,0.1404514]
[1723894164160,0.26951519,59268.0,59267.0,0.0139064]
[1723894172405,0.14297219,59268.0,59267.0,0.0139064]
[1723894173016,0.26951519,59268.0,59267.0,0.0139064]
[1723894173332,0.14297219,59268.0,59267.0,0.0139064]
[1723894174057,0.14297219,59268.0,59267.0,0.1404514]
[1723894174283,0.00017219,59268.0,59267.0,0.1404514]
[1723894174437,0.00017219,59268.0,59267.0,0.3935424]
[1723894174857,0.00017219,59268.0,59267.0,0.7413334]
[1723894180760,0.00017219,59268.0,59267.0,0.7399888]
[1723894180961,0.00017219,59268.0,59267.0,0.7387688]
[1723894183183,0.00017219,59268.0,59267.0,0.7327688]
[1723894183530,0.00017219,59268.0,59267.0,0.727427]
[1723894183787,0.00017219,59268.0,59267.0,0.741427]
[1723894184175,0.00017219,59268.0,59267.0,0.734427]
[1723894184984,0.00017219,59268.0,59267.0,0.727427]
[1723894185566,0.00017219,59268.0,59267.0,0.735427]
[1723894186284,0.00017219,59268.0,59267.0,0.743427]
[1723894188100,0.00017219,59268.0,59267.0,0.490336]
[1723894190050,0.07687219,59268.0,59267.0,0.4912424]
[1723894202727,0.00017219,59268.0,59267.0,0.4912424]
[1723894205174,0.00017219,59268.0,59267.0,0.7443334]
[1723894205351,0.00017219,59268.0,59267.0,0.4912424]
[1723894205563,0.00017219,59268.0,59267.0,0.7443334]
[1723894205971,0.00017219,59268.0,59267.0,0.91588794]
[1723894206193,0.00017219,59268.0,59267.0,0.93888794]
[1723894206433,0.00017219,59268.0,59267.0,1.02118794]
[1723894209603,0.00017219,59268.0,59267.0,0.93888794]
[1723894210601,0.00017219,59268.0,59267.0,0.3965424]
[1723894210602,0.07697219,59268.0,59267.0,0.3965424]
[1723894211486,0.14227219,59268.0,59267.0,0.1434514]
[1723894213336,0.07697219,59268.0,59267.0,0.1434514]
[1723894213538,0.00017219,59268.0,59267.0,0.3965424]
[1723894214346,0.00017219,59268.0,59267.0,0.6496334]
[1723894225004,0.14287219,59268.0,59267.0,0.3965424]
[1723894225208,0.14287219,59268.0,59267.0,0.1434514]
[1723894225393,0.14287219,59268.0,59267.0,0.0169064]
[1723894225656,0.19345023,59268.0,59267.0,0.0169064]
[1723894225983,0.19345023,59268.0,59267.0,0.1434514]
[1723894228122,0.21873925,59268.0,59267.0,0.0169064]
[1723894228348,0.34528225,59268.0,59267.0,0.0169064]
[1723894231490,0.26941519,59268.0,59267.0,0.0169064]
[1723894231710,0.34528863,59268.0,59267.0,0.0169064]
[1723894232760,0.14287219,59268.0,59267.0,0.0169064]
[1723894232965,0.1934523,59268.0,59267.0,0.0169064]
[1723894233469,0.14287219,59268.0,59267.0,0.0169064]
[1723894239137,0.14287219,59268.0,59267.0,0.1434514]
[1723894239333,0.14287219,59268.0,59267.0,0.3965424]
[1723894248162,0.00017219,59268.0,59267.0,0.3965424]
[1723894249216,0.00017219,59268.0,59267.0,0.6496334]
[1723894249331,0.00017219,59268.0,59267.0,0.8834334]
[1723894251418,0.00017219,59268.0,59267.0,1.33107894]
[1723894252946,0.00017219,59268.0,59267.0,1.23637894]
[1723894253146,0.00017219,59268.0,59267.0,1.09727894]
[1723894253373,0.00017219,59268.0,59267.0,1.19197894]
[1723894253777,0.00017219,59268.0,59267.0,0.84418794]
[1723894263192,0.00017219,59268.0,59267.0,0.93888794]
[1723894274360,0.07547219,59268.0,59267.0,0.93888794]
[1723894278563,0.07547219,59268.0,59267.0,0.84418794]
[1723894278767,0.18892433,59268.0,59267.0,0.0169064]
[1723894278902,0.2142504,59268.0,59267.0,0.0169064]
[1723894279288,0.13827219,59268.0,59267.0,0.0169064]
[1723894279929,0.30121165,59268.0,59267.0,0.0169064]
[1723894280150,0.19990737,59268.0,59267.0,0.0169064]
[1723894280602,0.30119277,59268.0,59267.0,0.0169064]
[1723894280860,0.30119277,59268.0,59267.0,0.1434514]
[1723894280861,0.19990737,59268.0,59267.0,0.1434514]
[1723894281267,0.19990737,59268.0,59267.0,0.0169064]
[1723894281919,0.30116858,59268.0,59267.0,0.0169064]
[1723894282935,0.29971862,59268.0,59267.0,0.0169064]
[1723894284987,0.21419794,59268.0,59267.0,0.0169064]
[1723894285161,0.13827219,59268.0,59267.0,0.0169064]
[1723894285303,0.1985115,59268.0,59267.0,0.0169064]
[1723894285505,0.13827219,59268.0,59267.0,0.0169064]
[1723894285803,0.46771894,59268.0,59267.0,0.0169064]
[1723894286026,0.45155152,59268.0,59267.0,0.0169064]
[1723894286180,0.32502193,59268.0,59267.0,0.0169064]
[1723894287417,0.45151478,59268.0,59267.0,0.0169064]
[1723894287614,0.44968663,59268.0,59267.0,0.0169064]
[1723894289097,0.70277363,59268.0,59267.0,0.0169064]
[1723894289300,0.64407884,59268.0,59267.0,0.0169064]
[1723894289912,0.57628323,59268.0,59267.0,0.0169064]
[1723894290113,0.70274118,59268.0,59267.0,0.0169064]
[1723894291517,0.57628323,59268.0,59267.0,3.0201864]
[1723894292156,0.64376367,59268.0,59267.0,3.0201864]
[1723894293043,0.89685067,59268.0,59267.0,3.0201864]
[1723894297878,1.29357409,59268.0,59267.0,3.0201864]
[1723894298295,1.14993767,59268.0,59267.0,3.0201864]
[1723894298502,1.27056658,59268.0,59267.0,3.0201864]
[1723894299198,1.30142658,59268.0,59267.0,3.0121864]
[1723894299561,1.27164316,59268.0,59267.0,3.0121864]
[1723894299999,1.27164316,59268.0,59267.0,3.0041864]
[1723894300381,1.27364316,59268.0,59267.0,3.0041864]
[1723894300782,1.27164316,59268.0,59267.0,3.0041864]
[1723894300983,1.09386611,59268.0,59267.0,3.0041864]
[1723894301239,1.47048277,59268.0,59267.0,3.0041864]
[1723894302894,1.76083071,59268.0,59267.0,3.0041864]
[1723894303145,1.86083071,59268.0,59267.0,3.0041864]
[1723894303478,2.03120955,59268.0,59267.0,3.0041864]
[1723894304313,1.79113452,59268.0,59267.0,3.0041864]
[1723894307982,1.79413452,59268.0,59267.0,3.0041864]
[1723894308323,1.79213452,59268.0,59267.0,3.0041864]
[1723894309853,1.79413452,59268.0,59267.0,3.0041864]
[1723894310048,1.79113452,59268.0,59267.0,3.0041864]
[1723894310678,1.83141863,59268.0,59267.0,3.0041864]
[1723894311202,1.79113452,59268.0,59267.0,3.0041864]
[1723894311456,1.96251336,59268.0,59267.0,3.0041864]
[1723894311973,1.96451336,59268.0,59267.0,3.0041864]
[1723894312377,1.79413452,59268.0,59267.0,3.0041864]
[1723894313027,2.42712152,59268.0,59267.0,2.8692024]
[1723894313230,2.42712152,59268.0,59267.0,2.6667264]
[1723894313231,2.58114764,59268.0,59267.0,2.6667264]
[1723894314128,2.57914764,59268.0,59267.0,2.6667264]
[1723894314298,2.57714764,59268.0,59267.0,2.6667264]
[1723894314526,2.57814764,59268.0,59267.0,2.6677264]
[1723894314658,2.58214764,59268.0,59267.0,2.6687264]
[1723894320138,2.58214764,59268.0,59267.0,2.6696328]
[1723894322163,2.32906064,59268.0,59267.0,2.6696328]
[1723894322383,2.32920758,59268.0,59267.0,2.6696328]
[1723894322860,2.48030961,59268.0,59267.0,2.6696328]
[1723894323065,2.32920758,59268.0,59267.0,2.6696328]
[1723894324023,2.14630758,59268.0,59267.0,2.6696328]
[1723894324377,1.86945304,59268.0,59267.0,2.6696328]
[1723894324579,1.87045304,59268.0,59267.0,2.6696328]
[1723894324914,1.86945304,59268.0,59267.0,2.6696328]
[1723894325117,1.87045304,59268.0,59267.0,2.6696328]
[1723894327150,2.04050078,59268.0,59267.0,2.6696328]
[1723894327751,2.03950078,59268.0,59267.0,2.6696328]
[1723894328311,2.04050078,59268.0,59267.0,2.6696328]
[1723894328509,2.03950078,59268.0,59267.0,2.6696328]
[1723894328716,2.04883797,59268.0,59267.0,2.6696328]
[1723894329420,1.87871664,59268.0,59267.0,2.6696328]
[1723894331356,1.87858108,59268.0,59267.0,2.6696328]
[1723894336027,1.87905736,59268.0,59267.0,2.6696328]
[1723894337531,1.87605736,59268.0,59267.0,2.6696328]
[1723894337874,1.87705736,59268.0,59267.0,2.6696328]
[1723894338438,1.87905736,59268.0,59267.0,2.6696328]
[1723894338645,2.04768425,59268.0,59267.0,2.6696328]
[1723894338846,1.87705736,59268.0,59267.0,2.6696328]
[1723894342136,1.87905736,59268.0,59267.0,2.6696328]
[1723894342338,1.87605736,59268.0,59267.0,2.6696328]
[1723894342545,1.87905736,59268.0,59267.0,2.6696328]
[1723894344807,1.87605736,59268.0,59267.0,2.6696328]
[1723894345110,1.87654454,59268.0,59267.0,2.6696328]
[1723894349286,2.12527963,59268.0,59267.0,2.6696328]
[1723894349489,2.03057963,59268.0,59267.0,2.6696328]
[1723894349690,1.87668493,59268.0,59267.0,2.6696328]
[1723894350717,2.12557178,59268.0,59267.0,2.6696328]
[1723894350850,2.12657178,59268.0,59267.0,2.6696328]
[1723894351055,2.12557178,59268.0,59267.0,2.6696328]
[1723894351917,1.87668493,59268.0,59267.0,2.6696328]
[1723894352242,2.12557178,59268.0,59267.0,2.6696328]
[1723894354544,2.12857178,59268.0,59267.0,2.6696328]
[1723894355296,2.12557178,59268.0,59267.0,2.6696328]
[1723894358610,2.1236177,59268.0,59267.0,2.6696328]
[1723894362152,1.6377307,59268.0,59267.0,2.6696328]
[1723894362360,0.86415152,59268.0,59267.0,2.8069328]
[1723894362536,0.75110656,59268.0,59267.0,2.8069328]
[1723894362734,1.00419356,59268.0,59267.0,2.8069328]
[1723894363172,1.12878055,59268.0,59267.0,2.8069328]
[1723894364041,1.12878055,59268.0,59267.0,2.38543335]
[1723894364042,1.91814751,59268.0,59267.0,2.38543335]
[1723894364415,2.09614751,59268.0,59267.0,2.38543335]
[1723894364605,2.09814751,59268.0,59267.0,2.38543335]
[1723894365953,1.97179639,59268.0,59267.0,2.38543335]
[1723894371852,1.99479639,59268.0,59267.0,2.35168735]
[1723894372053,1.99479639,59268.0,59267.0,2.21670335]
[1723894372213,2.24788339,59268.0,59267.0,2.04797335]
[1723894372391,2.41943793,59268.0,59267.0,2.04797335]
[1723894372595,2.41943793,59268.0,59267.0,1.59907335]
[1723894372796,3.66803793,59268.0,59267.0,1.46533414]
[1723894373240,3.49854919,59268.0,59267.0,1.29660414]
[1723894373441,3.63902088,59268.0,59267.0,1.29660414]
[1723894373640,3.63802088,59268.0,59267.0,1.29560414]
[1723894374215,3.63902088,59268.0,59267.0,1.29560414]
[1723894374425,3.63902088,59268.0,59267.0,1.22811214]
[1723894374598,3.64102088,59268.0,59267.0,1.12687414]
[1723894375199,3.64102088,59268.0,59267.0,1.09312814]
[1723894375901,3.65502088,59268.0,59267.0,0.95914414]
[1723894376199,3.65502088,59268.0,59267.0,0.85790614]
[1723894376400,3.65502088,59268.0,59267.0,0.79041414]
[1723894376785,3.48395221,59268.0,59267.0,0.79041414]
[1723894376986,3.48395221,59268.0,59267.0,0.79017091]
[1723894377301,3.48395221,59268.0,59267.0,0.75642491]
[1723894377437,3.48395221,59268.0,59267.0,0.65518691]
[1723894377643,3.48395221,59268.0,59267.0,0.62144091]
[1723894378071,3.48395221,59268.0,59267.0,0.55394891]
[1723894378277,3.50159748,59268.0,59267.0,0.45271091]
[1723894379075,3.59792993,59268.0,59267.0,0.45271091]
[1723894380531,3.07051048,59268.0,59267.0,0.45271091]
[1723894380745,3.14517933,59268.0,59267.0,0.45271091]
[1723894380936,3.05047933,59268.0,59267.0,0.45271091]
[1723894381140,3.14317933,59268.0,59267.0,0.45271091]
[1723894381469,3.00427933,59268.0,59267.0,0.45271091]
[1723894381663,3.00527933,59268.0,59267.0,0.45271091]
[1723894381819,2.98427933,59268.0,59267.0,0.45071091]
[1723894382223,1.39459233,59268.0,59267.0,0.45171091]
[1723894382426,1.40859233,59268.0,59267.0,0.45271091]
[1723894382626,1.39559233,59268.0,59267.0,0.45171091]
[1723894382825,1.36394706,59268.0,59267.0,0.51481091]
[1723894383128,1.39094706,59268.0,59267.0,0.51681091]
[1723894383345,1.39094706,59268.0,59267.0,0.59801091]
[1723894383525,1.49094706,59268.0,59267.0,0.59801091]
[1723894383734,1.29624706,59268.0,59267.0,0.59801091]
[1723894383875,0.93759953,59268.0,59267.0,0.59801091]
[1723894384079,0.68451253,59268.0,59267.0,0.59801091]
[1723894384321,0.60272261,59268.0,59267.0,0.59701091]
[1723894384528,0.85580961,59268.0,59267.0,0.59701091]
[1723894384733,0.95687444,59268.0,59267.0,0.59701091]
[1723894385260,0.97087444,59268.0,59267.0,0.59801091]
[1723894385405,0.88378345,59268.0,59267.0,0.59701091]
[1723894385635,0.95782526,59268.0,59267.0,0.59601091]
[1723894385840,0.95782526,59268.0,59267.0,0.59801091]
[1723894385841,0.97682526,59268.0,59267.0,0.59801091]
[1723894386277,0.87578345,59268.0,59267.0,0.59801091]
[1723894386580,0.86378345,59268.0,59267.0,0.59701091]
[1723894386834,0.87078345,59268.0,59267.0,0.59801091]
[1723894386956,0.97181571,59268.0,59267.0,0.59801091]
[1723894387325,0.96481571,59268.0,59267.0,0.59701091]
[1723894387561,0.97179731,59268.0,59267.0,0.59801091]
[1723894387670,0.61769645,59268.0,59267.0,0.59801091]
[1723894387874,0.5471574,59268.0,59267.0,0.59801091]
[1723894388118,0.57244417,59268.0,59267.0,0.59801091]
[1723894388483,0.44614191,59268.0,59267.0,0.59801091]
[1723894388977,0.19351388,59268.0,59267.0,0.59801091]
[1723894389186,0.31976203,59268.0,59267.0,0.59801091]
[1723894389551,0.19351388,59268.0,59267.0,0.59801091]
[1723894390455,0.29447686,59268.0,59267.0,0.59801091]
[1723894390839,0.19351388,59268.0,59267.0,0.59801091]
[1723894391361,0.29448746,59268.0,59267.0,0.59801091]
[1723894392184,0.54757446,59268.0,59267.0,0.59801091]
[1723894392386,0.14071519,59268.0,59267.0,0.59801091]
[1723894392584,0.1940889,59268.0,59267.0,0.59801091]
[1723894392769,0.14071519,59268.0,59267.0,0.59801091]
[1723894393527,0.21642204,59268.0,59267.0,0.59801091]
[1723894393871,0.46950904,59268.0,59267.0,0.59801091]
[1723894395944,0.21642204,59268.0,59267.0,0.59801091]
[1723894396146,0.08987904,59268.0,59267.0,0.59801091]
[1723894396349,0.19117421,59268.0,59267.0,0.59801091]
[1723894396545,0.14071519,59268.0,59267.0,0.59801091]
[1723894397249,0.12671519,59268.0,59267.0,0.59601091]
[1723894397623,0.13271519,59268.0,59267.0,0.59701091]
[1723894398764,0.13771519,59268.0,59267.0,0.59701091]
[1723894399311,0.01117219,59268.0,59267.0,0.59701091]
[1723894399720,0.13771519,59268.0,59267.0,0.59701091]
[1723894400502,0.01117219,59268.0,59267.0,0.59701091]
[1723894402081,0.13771519,59268.0,59267.0,0.59701091]
[1723894402292,0.01117219,59268.0,59267.0,0.59701091]
[1723894414552,0.07871085,59268.0,59267.0,0.59701091]
[1723894422441,0.12914367,59268.0,59267.0,0.59701091]
[1723894423306,0.15436008,59268.0,59267.0,0.59701091]
[1723894424554,0.23392188,59268.0,59267.0,0.59701091]
[1723894425173,0.23392188,59268.0,59267.0,0.97664691]
[1723894425174,0.07871085,59268.0,59267.0,0.97664691]
[1723894425554,0.06173441,59268.0,59267.0,0.97664691]
[1723894425755,0.01117219,59268.0,59267.0,0.97664691]
[1723894425899,0.06173441,59268.0,59267.0,0.97664691]
[1723894426310,0.01117219,59268.0,59267.0,0.97664691]
[1723894426507,0.06173441,59268.0,59267.0,0.97664691]
[1723894426907,0.01117219,59268.0,59267.0,0.97664691]
[1723894428341,0.08695885,59268.0,59267.0,0.97664691]
[1723894429502,0.11203783,59268.0,59267.0,0.97664691]
[1723894429710,0.17029197,59268.0,59267.0,0.97664691]
[1723894430943,0.17029197,59268.0,59267.0,0.72355591]
[1723894431143,0.17029197,59268.0,59267.0,0.81825591]
[1723894431755,0.06942633,59268.0,59267.0,0.81825591]
[1723894432157,0.19550838,59268.0,59267.0,0.81825591]
[1723894432388,0.19550838,59268.0,59267.0,1.07134691]
[1723894433179,0.06942633,59268.0,59267.0,1.07134691]
[1723894433539,0.06914167,59268.0,59267.0,1.07134691]
[1723894435034,0.11241216,59268.0,59267.0,1.07134691]
[1723894435301,0.17038164,59268.0,59267.0,1.07134691]
[1723894436255,0.06914167,59268.0,59267.0,1.07134691]
[1723894436662,0.06914167,59268.0,59267.0,0.45171091]
[1723894436912,0.1366959,59268.0,59267.0,0.45171091]
[1723894439266,0.4097389,59268.0,59267.0,0.45171091]
[1723894440515,0.81468993,59268.0,59267.0,0.45171091]
[1723894441145,0.6628259,59268.0,59267.0,0.45171091]
[1723894443875,0.81468993,59268.0,59267.0,0.45171091]
[1723894444087,0.6628259,59268.0,59267.0,0.45171091]
[1723894445703,0.4097389,59268.0,59267.0,0.45171091]
[1723894450205,0.2831959,59268.0,59267.0,0.45171091]
[1723894450402,0.2190959,59268.0,59267.0,0.45171091]
[1723894451277,0.1366959,59268.0,59267.0,0.45171091]
[1723894452628,0.1366959,59268.0,59267.0,0.62401091]
[1723894454554,0.1366959,59268.0,59267.0,0.54641091]
[1723894455240,0.1366959,59268.0,59267.0,0.73695591]
[1723894459576,0.2813959,59268.0,59267.0,0.45171091]
[1723894460583,0.27939253,59268.0,59267.0,0.45171091]
[1723894461010,0.43127012,59268.0,59267.0,0.45171091]
[1723894461540,0.55781312,59268.0,59267.0,0.45171091]
[1723894461847,0.43127012,59268.0,59267.0,0.45171091]
[1723894464309,0.55781312,59268.0,59267.0,0.45171091]
[1723894465233,0.55585669,59268.0,59267.0,0.45171091]
[1723894470746,0.42931369,59268.0,59267.0,0.45171091]
[1723894470953,0.27742408,59268.0,59267.0,0.54641091]
[1723894471174,0.21382408,59268.0,59267.0,0.54641091]
[1723894473580,0.21382408,59268.0,59267.0,0.45171091]
[1723894474212,0.27816221,59268.0,59267.0,0.45171091]
[1723894474532,0.5566102,59268.0,59267.0,0.45171091]
[1723894477526,0.40470521,59268.0,59267.0,0.45171091]
[1723894478871,0.40358748,59268.0,59267.0,0.45171091]
[1723894480535,0.41361786,59268.0,59267.0,0.45171091]
[1723894482837,0.66670486,59268.0,59267.0,0.45171091]
[1723894484406,0.66555069,59268.0,59267.0,0.45171091]
[1723894485941,0.66637469,59268.0,59267.0,0.45171091]
[1723894489751,0.65634431,59268.0,59267.0,0.45171091]
[1723894492756,0.25846456,59268.0,59267.0,0.45171091]
[1723894493432,0.39946456,59268.0,59267.0,0.45171091]
[1723894493949,0.39961167,59268.0,59267.0,0.45171091]
[1723894494135,0.65269867,59268.0,59267.0,0.45171091]
[1723894501790,0.65250267,59268.0,59267.0,0.45171091]
[1723894505150,0.65241255,59268.0,59267.0,0.45171091]
[1723894510913,0.65236121,59268.0,59267.0,0.45171091]
[1723894515548,0.65234234,59268.0,59267.0,0.45171091]
[1723894518576,0.90542934,59268.0,59267.0,0.45171091]
[1723894518781,1.7751875,59268.0,59267.0,0.45171091]
[1723894518980,1.80462712,59268.0,59267.0,0.45171091]
[1723894519207,1.80562712,59268.0,59267.0,0.45171091]
[1723894519406,1.80462712,59268.0,59267.0,0.34186749]
[1723894519604,1.80762712,59268.0,59267.0,0.34186749]
[1723894519762,1.80562712,59268.0,59267.0,0.34186749]
[1723894519969,1.78249337,59268.0,59267.0,0.34086749]
[1723894520454,1.79149337,59268.0,59267.0,0.34186749]
[1723894520662,1.79949337,59268.0,59267.0,0.34186749]
[1723894521090,1.81349337,59268.0,59267.0,0.34286749]
[1723894521299,1.80849337,59268.0,59267.0,0.34186749]
[1723894521483,1.79449337,59268.0,59267.0,0.34186749]
[1723894521645,1.80849337,59268.0,59267.0,0.34286749]
[1723894522049,1.79449337,59268.0,59267.0,0.34186749]
[1723894522249,1.80849337,59268.0,59267.0,0.34286749]
[1723894523086,1.79449337,59268.0,59267.0,0.34186749]
[1723894523461,1.78049337,59268.0,59267.0,0.34086749]
[1723894523866,1.79449337,59268.0,59267.0,0.34086749]
[1723894524070,1.79149337,59268.0,59267.0,0.34086749]
[1723894524299,1.96569396,59268.0,59267.0,0.34086749]
[1723894524603,1.97618396,59268.0,59267.0,0.34086749]
[1723894527237,1.81963917,59268.0,59267.0,0.34086749]
[1723894527645,1.80563917,59268.0,59267.0,0.34086749]
[1723894528061,1.81963917,59268.0,59267.0,0.34086749]
[1723894528892,1.80563917,59268.0,59267.0,0.34086749]
[1723894529104,1.56655217,59268.0,59267.0,0.34086749]
[1723894529448,1.73701588,59268.0,59267.0,0.34086749]
[1723894529652,1.56655217,59268.0,59267.0,0.34086749]
[1723894530265,1.55255217,59268.0,59267.0,0.34086749]
[1723894531204,1.56655217,59268.0,59267.0,0.34086749]
[1723894531867,1.54889815,59268.0,59267.0,0.34086749]
[1723894546703,1.15481115,59268.0,59267.0,0.34086749]
[1723894546844,1.02401787,59268.0,59267.0,0.34086749]
[1723894547259,0.87244874,59268.0,59267.0,0.34086749]
[1723894547662,0.85844874,59268.0,59267.0,0.34086749]